Cogmind - Beta 14 @@@ ROGUE MODE // 2024.08.15 @ 00:08:08 Player: Darby Result: Destroyed by Autobeam Turret with Autobeam Performance ------------- Evolutions (0) 0 Regions Visited (2) 400 Robots Destroyed (46) 230 Value Destroyed (879) 879 Prototype IDs (3) 60 Alien Tech Used (0) 0 Bonus (0) 0 TOTAL SCORE: 1569 Bonus ------- None Cogmind --------- Core Integrity 0/250 Matter 300/300 Energy 100/100 System Corruption 0% Temperature Cool (6) Movement Flying (40) Location -10/Subcaves Parts ------- > --- POWER (1) -------- (None) > --- PROPULSION (2) --- Flight Unit > --- UTILITY (2) ------ (None) > --- WEAPON (2) ------- Mining Claw > --- INVENTORY (5) ---- Huge Storage Unit Structural Scanner Sensor Array Backup Plating I Hacking Suite Peak State ------------ > --- POWER ------------ Ion Engine > --- PROPULSION ------- Wheel Compact Wheel > --- UTILITY ---------- Small Storage Unit Seismic Detector > --- WEAPON ----------- Small Laser Assault Rifle > --- INVENTORY -------- Light Ion Engine Light Treads Light Treads Aluminum Leg Aluminum Leg Improved Terrain Scanner EM Pulse Gun Mining Laser [Rating: 8] Favorites ----------- Power Ion Engine Engine Ion Engine Propulsion Light Treads Treads Light Treads Leg Aluminum Leg Wheel Wheel Hover Unit Hover Unit Flight Unit Flight Unit Utility Large Storage Unit Device Structural Scanner Storage Large Storage Unit Protection Light Armor Plating Weapon Assault Rifle Energy Gun Small Laser Ballistic Gun Assault Rifle Special Weapon Mining Laser Slashing Weapon Mining Claw Special Melee Weapon Datajack Build | -11 -10 -10 ------- Run | Yrd Mat Sub Slots Evolved . | . . . Power . | . . . Propulsion . | . . . Utility . | . . . Weapon . | . . . Parts Attached 66 | 8 58 . Power 5 | 1 4 . Engine 5 | 1 4 . Core . | . . . Reactor . | . . . Propulsion 25 | 2 23 . Treads 10 | . 10 . Leg 3 | . 3 . Wheel 4 | 2 2 . Hover 4 | . 4 . Flight 4 | . 4 . Utility 13 | 3 10 . Device 5 | 2 3 . Storage 5 | 1 4 . Processor . | . . . Hackware . | . . . Protection 3 | . 3 . Artifact . | . . . Weapon 23 | 2 21 . Energy Gun 5 | 1 4 . Energy Cannon . | . . . Ballistic Gun 8 | 1 7 . Ballistic Cannon . | . . . Launcher . | . . . Special Weapon 7 | . 7 . Impact Weapon . | . . . Slashing Weapon 2 | . 2 . Piercing Weapon . | . . . Special Melee Weapon 1 | . 1 . Unidentified Prototypes . | . . . Parts Lost 7 | . 5 2 Power 2 | . 2 . Propulsion 3 | . 2 1 Utility 2 | . 1 1 Weapon . | . . . Highest Loss Streak 2 | . 2 2 To Critical Strikes . | . . . Average Slot Usage (%) 90 | . 90 56 Engine 10 | . 10 . Treads 17 | . 17 . Wheel 2 | . 2 . Hover 1 | . 1 . Flight 5 | . 4 23 Device 9 | . 9 9 Storage 12 | . 12 9 Protection 4 | . 5 . Energy Gun 6 | . 6 . Ballistic Gun 12 | . 13 . Special Weapon 1 | . 2 . Slashing Weapon 1 | . 1 14 Special Melee Weapon 1 | . 1 . Peak Build Rating 8 | 8 8 6 Average Rating 7 | 6 7 4 On Entrance 4 | . 8 6 Naked Turns . | . . . Heaviest Build 32 | 14 32 8 Greatest Support 40 | 26 40 8 Greatest Overweight (x) 3 | . 3 . Average Overweight (x) . | . . . Largest Inventory Capacity 15 | 8 15 8 Average Capacity 10 | 7 10 7 Most Carried 14 | 8 14 8 Average Carried 9 | 5 9 7 Final Capacity 8 | 8 8 5 Final Carried 8 | 8 8 5 Class Distribution -------------------- 67% | Mutant 32% | Scavenger-Mutant Dominant Class ---------------- Mutant | -10/Materials Mutant | -10/Subcaves Resources | -11 -10 -10 ----------- Run | Yrd Mat Sub Matter Collected 1330 | 334 996 . Remotely . | . . . Salvage Created 1392 | 211 1181 . Parts 102 | 16 86 . Haulers Intercepted 2 | . 2 . Recyclers Shooed 1 | 1 . . Parts Field Recycled . | . . . Retrieved Matter . | . . . Parts Self-Destructed . | . . . Prevented . | . . . Kills | -11 -10 -10 ------- Run | Yrd Mat Sub Combat Hostiles Destroyed 18 | . 18 . Guns 18 | . 18 . Classes Destroyed 9 | 3 6 . Worker 11 | 2 9 . Builder 6 | . 6 . Tunneler 4 | 4 . . Hauler 2 | . 2 . Recycler 1 | 1 . . Operator 1 | . 1 . Watcher 3 | . 3 . Swarmer 3 | . 3 . Grunt 15 | . 15 . Best Kill Streak 6 | 5 6 . Combat Bots Only 5 | . 5 . Max Kills in Single Turn 2 | 1 2 . Gunslinging 1 | . 1 . Exploded . | . . . Melee . | . . . Uniques/NPCs Destroyed . | . . . Combat | -11 -10 -10 -------- Run | Yrd Mat Sub Hostile Shots Fired 124 | . 115 9 Missed 36 | . 31 5 Damage Taken 1079 | . 981 98 Core 252 | . 189 63 Absorbed by Shields . | . . . Core Remaining (%) 100 | 100 . . Volleys Fired 138 | 18 120 . Largest 2 | 2 2 . Hottest 120 | 60 120 . Shots Fired 263 | 35 228 . Gun 252 | 35 217 . Cannon . | . . . Launcher . | . . . Special 11 | . 11 . Kinetic 167 | 18 149 . Thermal 96 | 17 79 . Explosive . | . . . Electromagnetic . | . . . Robot Hit Streak 23 | 7 23 . Robot Miss Streak 4 | 3 4 . Penetration Max . | . . . Secondary Targets 5 | . 5 . Max Gunslinging Chain 1 | . 1 . Shots Hit Robots 161 | 22 139 . Core Hits 66 | 8 58 . Critical Kills . | . . . Critical Parts Destroyed 1 | . 1 . Critical Strikes 1 | . 1 . Destroy 1 | . 1 . Melee Attacks 16 | . 16 . Impact . | . . . Slashing 15 | . 15 . Piercing . | . . . Sneak Attacks 1 | . 1 . Combat Hostiles . | . . . Follow-up Attacks . | . . . Damage Inflicted 1967 | 286 1681 . Guns 1919 | 286 1633 . Cannons . | . . . Explosions . | . . . Melee . | . . . Ramming . | . . . Kinetic 1260 | 143 1117 . Thermal 707 | 143 564 . Explosive . | . . . Electromagnetic . | . . . Impact . | . . . Slashing . | . . . Piercing . | . . . Highest Corruption . | . . . Average Corruption . | . . . Corruption Purged . | . . . Corruption Blocked . | . . . Overload Shots . | . . . Overflow Damage . | . . . Projectiles . | . . . Explosions . | . . . Melee . | . . . Knockbacks . | . . . Impact . | . . . Kinetic . | . . . Secondary . | . . . Self-Inflicted Damage . | . . . Shots . | . . . Rammed . | . . . Targets Rammed . | . . . Kicked . | . . . Crushed . | . . . Highest Temperature 150 | 20 150 . Average Temperature 26 | 20 27 . Received Heat Transfer 546 | . 534 12 Siege Activations . | . . . Robots Corrupted . | . . . Combat Hostiles . | . . . Parts Fried . | . . . Impact Corruptions . | . . . Robots Melted . | . . . Combat Hostiles . | . . . Parts Melted . | . . . Heat Transferred 1625 | 325 1300 . Parts Sabotaged . | . . . Parts Stolen . | . . . Parts Stripped . | . . . Power Chain Reactions . | . . . Alert | -11 -10 -10 ------- Run | Yrd Mat Sub Peak Influence 465 | 35 465 . Initial 22 | . 22 . Average 231 | 10 246 . Maximum Alert Level 2 | . 2 . Low Security (%) 22 | 100 17 . Level 1 70 | . 75 . Level 2 6 | . 6 . Level 3 . | . . . Level 4 . | . . . Level 5 . | . . . High Security . | . . . Max Security . | . . . Squads Dispatched 5 | . 5 . Investigation 4 | . 4 . Extermination . | . . . Reinforcement 1 | . 1 . Assault . | . . . Garrison . | . . . Intercept . | . . . Searches Triggered . | . . . Construction Impeded . | . . . Haulers Reinforced . | . . . Active Scanning Responses . | . . . Cargo Convoy Interrupts . | . . . Stealth | -11 -10 -10 --------- Run | Yrd Mat Sub Distress Signals 2 | . 2 . Communications Jammed . | . . . Distress Signals . | . . . Times Spotted 33 | . 29 4 Peak Tracking Total 8 | . 6 8 Tactical Retreats . | . . . Traps | -11 -10 -10 ------- Run | Yrd Mat Sub Traps Triggered 3 | . 3 . Indirectly . | . . . Trap Hack Attempts 24 | . 24 . Triggered . | . . . Disarmed . | . . . Reprogrammed 4 | . 4 . Reused . | . . . Traps Extracted . | . . . Installed . | . . . Triggered . | . . . Machines | -11 -10 -10 ---------- Run | Yrd Mat Sub Machines Disabled 17 | . 17 . Max in Single Turn 1 | . 1 . Machines Repaired . | . . . Machines Dismantled . | . . . Machines Sabotaged . | . . . Overloaded Fab Kills . | . . . Hacking | -11 -10 -10 --------- Run | Yrd Mat Sub Machines Accessed 10 | . 10 . Terminals 7 | . 7 . Fabricators . | . . . Repair Stations 1 | . 1 . Recycling Units 2 | . 2 . Scanalyzers . | . . . Garrison Access . | . . . Total Hacks 23 | . 23 . Successful 15 | . 15 . Failed 8 | . 8 . Catastrophic 1 | . 1 . Database Lockouts . | . . . Manual 15 | . 15 . Terminals 17 | . 17 . Fabricators . | . . . Repair Stations 3 | . 3 . Recycling Units 3 | . 3 . Scanalyzers . | . . . Garrison Access . | . . . Terminal Hacks 3 | . 3 . Robot Analysis 1 | . 1 . Prototype ID Bank 1 | . 1 . Terminal Index 1 | . 1 . Fabricator Hacks . | . . . Repair Station Hacks 1 | . 1 . Scan Component 1 | . 1 . Recycling Unit Hacks . | . . . Scanalyzer . | . . . Garrison Access Hacks . | . . . Unauthorized Hacks 11 | . 11 . Terminals 7 | . 7 . Assimilate 1 | . 1 . Botnet 1 | . 1 . Skim 5 | . 5 . Fabricators . | . . . Repair Stations 1 | . 1 . Mechanics 1 | . 1 . Recycling Units 3 | . 3 . Recyclers 1 | . 1 . Tunnel 2 | . 2 . Scanalyzers . | . . . Garrison Access . | . . . Data Cores Recovered . | . . . Used . | . . . Hacking Detections 8 | . 8 . Full Trace Events . | . . . Feedback Events . | . . . Feedback Blocked . | . . . Robot Schematics Acquired . | . . . Robots Built . | . . . Authchips . | . . . Time . | . . . Total Robot Build Rating . | . . . Part Schematics Acquired . | . . . Parts Built . | . . . Authchips . | . . . Time . | . . . Total Part Build Rating . | . . . Parts Repaired . | . . . Time . | . . . Parts Recycled . | . . . Recycled Matter . | . . . Retrieved Matter . | . . . Retrieved Components . | . . . Parts Scanalyzed . | . . . Part Schematics Acquired . | . . . Parts Damaged . | . . . Bothacking | -11 -10 -10 ------------ Run | Yrd Mat Sub Used RIF Installer . | . . . Robots Hacked . | . . . Non-combat . | . . . Combat . | . . . Robot Hacks Applied . | . . . Relay Couplers Released . | . . . Fabnet Peak Effective % . | . . . Robots Rewired . | . . . Allies Hacked . | . . . Hacks Repelled . | . . . Allies | -11 -10 -10 -------- Run | Yrd Mat Sub Total Allies 1 | . 1 . Largest Group 1 | . 1 . Highest-Rated Group 10 | . 10 . Highest-Rated Ally 10 | . 10 . Total Orders . | . . . Ally Attacks . | . . . Total Damage . | . . . Kills . | . . . Allies Corrupted . | . . . Allies Melted . | . . . Intel | -11 -10 -10 ------- Run | Yrd Mat Sub Robot Analysis Total 1 | . 1 . Derelict Logs Recovered . | . . . Drone Launches . | . . . Drone Recoveries . | . . . Exploration | -11 -10 -10 ------------- Run | Yrd Mat Sub Turns Passed 2192 | 139 2029 24 Spaces Moved 1530 | 67 1435 28 Core 23 | 1 22 . Treads 550 | . 550 . Legs 16 | . 16 . Wheels 213 | 66 147 . Hover 67 | . 67 . Flight 661 | . 633 28 Fastest Speed 37 | 50 37 37 Average Speed 92 | 88 93 38 Slowest Speed 200 | 90 200 40 Overloaded Moves . | . . . Propulsion Burnouts . | . . . Robots Hopped . | . . . Cave-ins Triggered . | . . . Exploration Rate (%) 37 | 5 100 6 Regions Visited 2 Branch Regions 1 Pre-discovered Areas 3 | . 3 . Known Exits Taken 1 | . 1 . Unknown Exits Taken 1 | 1 . . Scrap Searched . | . . . Spaces Dug 7 | . 7 . Terrain Destroyed 7 | . 7 . Melee 1 | . 1 . Projectile 6 | . 6 . AOE . | . . . Terrain Rammed . | . . . Walls Destroyed . | . . . Machines Disabled . | . . . Actions | -11 -10 -10 --------- Run | Yrd Mat Sub Total 1982 | 109 1832 41 Wait 138 | 4 122 12 Move 1528 | 66 1434 28 Hop . | . . . Pick Up 30 | 10 20 . Fast Attach 18 | 7 11 . Attach 7 | . 7 . Detach 6 | . 6 . Swap 41 | 1 40 . Drop 36 | 3 32 1 Fire 138 | 18 120 . Melee 16 | . 16 . Ram . | . . . Kick . | . . . Crush . | . . . Escape Stasis . | . . . Rewire . | . . . Trap 24 | . 24 . Miscellaneous . | . . . Route ------- -11/Scrapyard -10/Materials (discovered 6 exits: *Mat x3 / [*Min x2] / *Sub) -10/Subcaves (discovered 2 exits: Mat / [*Rec]) History --------- Turn | Location | Event 17 | -11/Scrapyard | Discovered new exit (range 16) 140 | -11/Scrapyard | Entered Materials 160 | -10/Materials | Discovered new exit (range 12) 342 | -10/Materials | Build established: Mutant 745 | -10/Materials | Discovered new exit (range 5) 790 | -10/Materials | Build established: Scavenger-Mutant 846 | -10/Materials | Identified exit to Subcaves 846 | -10/Materials | Identified exit to Materials 1045 | -10/Materials | Learned location of Storage (-7) 1090 | -10/Materials | Learned location of 1 exit from Recycling 1162 | -10/Materials | Discovered new exit (range 5) 1232 | -10/Materials | Learned Storage emergency access door positions 1304 | -10/Materials | Build established: Mutant 1600 | -10/Materials | Core integrity fell below 50% 2169 | -10/Materials | Entered Subcaves 2170 | -10/Subcaves | Identified exit to Materials 2186 | -10/Subcaves | Core integrity fell below 20% 2190 | -10/Subcaves | Shifting Twisted Machinery released Mak. Hacking Suite 2191 | -10/Subcaves | Shifting Twisted Machinery released Mak. System Restoration Module 2191 | -10/Subcaves | Discovered new exit (range 15) 2193 | -10/Subcaves | Destroyed by Autobeam Turret with Autobeam Last Messages --------------- 02124_ Dropped Lgt. Armor Plating. 02124_ Acquired Backup Plating I. 02137_ Terminal disabled. 02146_ Dropped Flight Unit. 02150_ Acquired 4 matter. LOCATION=SUBCAVES AMBIENT_HEAT=-10 GOAL=ESCAPE 02170_ S2-1N5(h): "Hey you don't look like the usual menacing locals. I'm on point searching for advanced tech we've heard is being developed in secret down here, seen anything like that?" Loading 1 Materials entrance... 02171_ S2-1N5(h) drops a Scrap Shield: "Protect yourself with this!" 02185_ S2-1N5(h) destroyed. 02185_ Flight Unit destroyed. 02186_ Dropped Sml. Storage Unit. 02187_ Seismic Detector destroyed. Mak. Hacking Suite falls loose from the Twisted Machinery. Mak. System Restoration Module falls loose from the Twisted Machinery. 02191_ EXIT=FOUND Map ----- +----------------------------------------------------+ | ???????###?### ????????????????????????????? | | ???????# #? ????????????????????????????? | | ??????## ? ????????????????????????????? | | ?????## ? ??????????????????????????????? | | ?????# ## % %#???????????????????????????????? | | ?????# # # "#????????????????????????????????? | | ?????# ###??????????????????????????????? | | ?????# " ##?????????????????????????????? | | ??????# *" % ##????<#??????????????????????? | | ??????# ! ! #???" """"???????????????????? | | ??????# ! #?? " " "#??????????????????? | | ??????# #####?? t t "#??????????????????? | | ??????## "#?????? #??????????????????? | | ??????#"" "" "#?????? #??????????????????? | | ??????####"""" "####??? ????????????????????? | | ?????????#"""" "" #??## ######????????????????? | | ?????????##" # "##### ##???????????????? | | ?????????#""" ## ### #???????????????? | | ???????# """! #???##?????????????? | | ???????##### ""! #?? #?????????????? | | ??????????#"" ## ## ## ##????????????? | | ??????????##" ?## ### #??? ##???????????? | | ???????????#" ??###?## ### #???????????? | | ???????????#? ??????## #????????????? | | ?????????????"????????# #?????????????? | | ??????????????????????# @ #?????????????? | | ?????????????????????# #????????????? | | ?????????????????????# #???????????? | | ????????????????????# #???????????? | | ??????????????????? ####???????????? | | ?????????????????? ##??????????????? | | ?????????????????## ### #???????????????? | | ??????????????????# #?? #??????????????? | | ??????????????????# #?? ?????????????? | | ?????????????????? ### #??? ????????????? | | ????????????????? #??###???## ????????????? | | ???????????????? #???????????# ????????????? | | ????????????????###?????????????# ??????????????? | | ?????????????????????????????????????????????????? | | ?????????????????????????????????????????????????? | | ?????????????????????????????????????????????????? | | ?????????????????????????????????????????????????? | | ?????????????????????????????????????????????????? | | ?????????????????????????????????????????????????? | | ?????????????????????????????????????????????????? | | ?????????????????????????????????????????????????? | | ?????????????????????????????????????????????????? | | ?????????????????????????????????????????????????? | | ?????????????????????????????????????????????????? | | ?????????????????????????????????????????????????? | +----------------------------------------------------+ Best States ------------- Heat Dissipation 25 Energy Generation 10 Energy Capacity 250 Matter Stores 300 Matter Capacity 300 Sight Range 16 Terrain Scan Density 10 Armor Coverage 150 Evasion (%) 62 Recoil Reduction 2 Item Schematics ----------------- None Robot Schematics ------------------ None Fabricated ------------ Nothing Alien Tech Used ----------------- None Achievements -------------- None Challenges ------------ None Game ------ Seed DimensionalClaymoresBattery Manual? 0 Play Time 00:48:39 Cumulative 29.6 hours Start 2024.08.14 @ 23:12:27 End 2024.08.15 @ 00:08:08 Sessions 1 Manual Loads 0 Difficulty Rogue Special Mode None Game No. 5 Rogue 5 Adventurer 0 Explorer 0 Win Type - Total 1 Types 1/0/0/0/0/0/0/0/0 Lore% 24 Gallery% 27 Achievement% 43 Wizard Run 0 Options --------- Layout 0 ASCII 0 Keyboard 1 Movement Arrows Keybinds 0 Fullscreen 1 Font 12/Smallcaps Map View 83x54 Zoom Use 0% Tactical HUD 1 Map Filters NONE Filters NONE Steam 0 RUN: 48367c77-ce4e-421a-bcb3-4cc0e937abd6